Cogmind - Beta 13 @@@ ROGUE MODE // 2024.07.16 @ 13:24:06 Player: Briarspitter Result: Destroyed by S-27 Virus with Autogun Performance ------------- Evolutions (3) 1500 Regions Visited (6) 1200 Robots Destroyed (64) 320 Value Destroyed (2259) 2259 Prototype IDs (4) 80 Alien Tech Used (0) 0 Bonus (300) 300 TOTAL SCORE: 5659 Bonus ------- Aligned with FarCom 300 Cogmind --------- Core Integrity 0/700 Matter 138/300 Energy 98/300 System Corruption 22% Temperature Cool (13) Movement Core (850) Ox16 Location -7/Factory Parts ------- > --- POWER (2) -------- (None) > --- PROPULSION (3) --- Improved Titanium Leg > --- UTILITY (6) ------ High-capacity Storage Unit Compact Battery Structural Scanner 0b10 Alert Chip Target Analyzer > --- WEAPON (2) ------- Arc Projector Arc Projector > --- INVENTORY (20) --- Improved Heat Sink Improved Heat Sink Structural Scanner Target Analyzer Matter Filter Graphene Brace Long-range Tractor Beam Lightning Gun Arc Projector Arc Projector Arc Projector Arc Projector Arc Projector Light EM Pulse Cannon Flak Cannon Remote Datajack Peak State ------------ > --- POWER ------------ Reinforced Deuterium Engine Cooled Deuterium Engine > --- PROPULSION ------- Armored Wheel Armored Huge Wheel > --- UTILITY ---------- Medium Storage Unit 0b10 Alert Chip Microactuators Hardened Heavy Armor Plating Improved Shield Generator > --- WEAPON ----------- Lightning Gun Improved EM Pulse Cannon > --- INVENTORY -------- Armored Wheel Improved Cooling System Compact Battery Structural Scanner Advanced ECM Suite Graphene Brace Heavy Missile Launcher Remote Datajack Greatsword [Rating: 53] Favorites ----------- Power Light Nuclear Core Engine Reinforced Deuterium Engine Power Core Light Nuclear Core Propulsion Aluminum Leg Leg Aluminum Leg Wheel Armored Wheel Utility 0b10 Alert Chip Device Structural Scanner Storage Medium Storage Unit Processor 0b10 Alert Chip Hackware System Shield Protection Improved Light Armor Plating Weapon Light EM Pulse Cannon Energy Gun EM Pulse Gun Energy Cannon Light EM Pulse Cannon Ballistic Gun High-powered Shotgun Ballistic Cannon Flak Cannon Launcher Heavy Missile Launcher Special Weapon Remote Datajack Slashing Weapon Greatsword Build | -11 -10 -10 -10 -9 -8 -7 ------- Run | Yrd Mat Min Exi Min Mat Fac Slots Evolved 6 | . . . . . 4 2 Power 1 | . . . . . 1 . Propulsion 1 | . . . . . . 1 Utility 4 | . . . . . 3 1 Weapon . | . . . . . . . Parts Attached 151 | 7 2 . 8 4 50 80 Power 15 | 2 . . . 1 6 6 Engine 8 | 2 . . . . 3 3 Core 7 | . . . . 1 3 3 Reactor . | . . . . . . . Propulsion 21 | 2 . . . . 8 11 Treads . | . . . . . . . Leg 14 | 2 . . . . 6 6 Wheel 7 | . . . . . 2 5 Hover . | . . . . . . . Flight . | . . . . . . . Utility 66 | 1 2 . 7 . 20 36 Device 40 | 1 1 . 1 . 10 27 Storage 16 | . 1 . 5 . 5 5 Processor 4 | . . . 1 . . 3 Hackware 1 | . . . . . 1 . Protection 5 | . . . . . 4 1 Artifact . | . . . . . . . Weapon 49 | 2 . . 1 3 16 27 Energy Gun 11 | 2 . . 1 . 1 7 Energy Cannon 16 | . . . . 1 9 6 Ballistic Gun 6 | . . . . 1 . 5 Ballistic Cannon 3 | . . . . . . 3 Launcher 5 | . . . . 1 3 1 Special Weapon 2 | . . . . . . 2 Impact Weapon . | . . . . . . . Slashing Weapon 6 | . . . . . 3 3 Piercing Weapon . | . . . . . . . Special Melee Weapon . | . . . . . . . Unidentified Prototypes 4 | . . . 1 . 1 2 Corrupted Parts 1 | . . . . . 1 . System Corruption 1 | . . . . . 1 . Parts Lost 24 | . . . . . 6 18 Power 5 | . . . . . 1 4 Propulsion 8 | . . . . . 2 6 Utility 5 | . . . . . 2 3 Weapon 6 | . . . . . 1 5 Highest Loss Streak 7 | . . . . . 4 7 To Critical Strikes . | . . . . . . . Average Slot Usage (%) 93 | . 99 100 98 99 92 88 Engine 6 | . 14 14 14 1 2 10 Core 7 | . . . . 12 13 2 Leg 16 | . 28 28 28 28 17 5 Wheel 4 | . . . . . . 11 Device 12 | . 16 28 17 . 14 13 Storage 12 | . 10 . 7 14 15 12 Processor 9 | . . . 1 14 9 12 Protection 2 | . . . . . 3 3 Energy Gun 5 | . 28 28 27 2 . 2 Energy Cannon 7 | . . . . 10 12 4 Ballistic Gun 3 | . . . . 12 . 4 Naked Turns . | . . . . . . . Heaviest Build 101 | 10 13 11 20 27 69 101 Greatest Support 40 | 20 20 20 20 20 26 40 Greatest Overweight (x) 6 | . . . . 1 6 6 Average Overweight (x) 1 | . . . . . 1 1 Largest Inventory Capacity 20 | 5 5 5 10 10 10 20 Average Capacity 12 | 5 5 5 7 10 10 17 Most Carried 20 | 1 4 5 7 8 10 20 Average Carried 9 | . 1 4 5 7 9 13 Final Capacity 20 | 5 5 5 10 10 10 20 Final Carried 16 | 1 4 5 7 8 10 16 Class Distribution -------------------- 32% | Mutant 22% | Scavenger-Skirmisher 19% | Skirmisher 10% | Infiltrator-Skirmisher 7% | Scavenger-Gladiator 5% | Scavenger-Mutant Dominant Class ---------------- Mutant | -10/Materials Mutant | -10/Mines Mutant | -10/Exiles Mutant | -9/Mines Scavenger-Skirmisher | -8/Materials Infiltrator-Skirmisher | -7/Factory Resources | -11 -10 -10 -10 -9 -8 -7 ----------- Run | Yrd Mat Min Exi Min Mat Fac Matter Collected 2126 | 270 . 20 45 208 466 1117 Remotely 246 | . . . . . . 246 Salvage Created 2265 | 39 . . . 105 1007 1114 Parts 136 | 3 . . . 12 45 76 Haulers Intercepted 1 | . . . . . . 1 Recyclers Shooed 1 | . . . . . . 1 Parts Field Recycled . | . . . . . . . Retrieved Matter . | . . . . . . . Parts Self-Destructed . | . . . . . . . Prevented . | . . . . . . . Kills | -11 -10 -10 -10 -9 -8 -7 ------- Run | Yrd Mat Min Exi Min Mat Fac Combat Hostiles Destroyed 51 | 1 . . . 7 20 23 Melee 13 | . . . . . 11 2 Guns 16 | 1 . . . 5 . 10 Cannons 13 | . . . . 2 5 6 AOE 6 | . . . . . 2 4 Classes Destroyed 12 | 1 . . . 1 7 3 Worker 6 | . . . . . 1 5 Builder 4 | . . . . . 1 3 Hauler 1 | . . . . . . 1 Operator 1 | . . . . . 1 . Watcher 1 | . . . . . 1 . Swarmer 13 | . . . . 7 3 3 Grunt 20 | 1 . . . . 12 7 Duelist 3 | . . . . . . 3 Sentry 5 | . . . . . 3 2 Hunter 1 | . . . . . 1 . Programmer 8 | . . . . . . 8 Heavy 1 | . . . . . 1 . Best Kill Streak 5 | 1 . . . 3 4 5 Combat Bots Only 4 | 1 . . . 3 4 3 Max Kills in Single Turn 4 | 1 . . . 1 2 4 Gunslinging . | . . . . . . . Exploded 2 | . . . . . 1 2 Melee 1 | . . . . . 1 1 Uniques/NPCs Destroyed . | . . . . . . . Combat | -11 -10 -10 -10 -9 -8 -7 -------- Run | Yrd Mat Min Exi Min Mat Fac Hostile Shots Fired 513 | 2 . 4 . 28 95 384 Missed 159 | . . . . 5 31 123 Damage Taken 4932 | 23 . 34 . 174 1336 3365 Core 923 | 11 . 8 . 51 140 713 Absorbed by Shields 333 | . . . . . 72 261 Ignored by Resistances 71 | . . . . . 71 . Regen/Repaired (Parts) 67 | . . . . . 67 . Core Remaining (%) 80 | 95 . . . 72 74 . Volleys Fired 155 | 2 . . . 16 33 104 Largest 2 | 2 . . . 2 2 2 Hottest 134 | 80 . . . 84 119 134 Shots Fired 288 | 4 . 1 . 32 52 199 Gun 152 | 4 . 1 . 19 . 128 Cannon 124 | . . . . 13 43 68 Launcher 11 | . . . . . 9 2 Special 1 | . . . . . . 1 Kinetic 111 | . . . . 13 . 98 Thermal 13 | . . . . . . 13 Explosive 11 | . . . . . 9 2 Electromagnetic 152 | 4 . 1 . 19 43 85 Robot Hit Streak 12 | 1 . . . 3 6 12 Robot Miss Streak 8 | 2 . 1 . 8 2 6 Penetration Max . | . . . . . . . Secondary Targets 1 | . . . . . . 1 Max Gunslinging Chain 1 | . . . . . . 1 Shots Hit Robots 226 | 2 . . . 21 54 149 Core Hits 121 | 2 . . . 10 29 80 Critical Kills 1 | . . . . . . 1 Critical Parts Destroyed 3 | . . . . . . 3 Critical Strikes 12 | . . . . 1 1 10 Destroy 4 | . . . . . . 4 Blast 1 | . . . . . . 1 Corrupt 2 | . . . . 1 . 1 Sever 5 | . . . . . 1 4 Melee Attacks 40 | . . . . . 30 10 Impact . | . . . . . . . Slashing 40 | . . . . . 30 10 Piercing . | . . . . . . . Sneak Attacks 1 | . . . . . 1 . Combat Hostiles . | . . . . . . . Follow-up Attacks . | . . . . . . . Damage Inflicted 6684 | 27 . . . 319 2312 4026 Guns 1709 | 27 . . . 170 . 1512 Cannons 2018 | . . . . 149 789 1080 Explosions 1530 | . . . . . 518 1012 Melee 1427 | . . . . . 1005 422 Ramming . | . . . . . . . Kinetic 1559 | . . . . 123 . 1436 Thermal 1002 | . . . . . . 1002 Explosive 899 | . . . . . 518 381 Electromagnetic 1797 | 27 . . . 196 789 785 Impact . | . . . . . . . Slashing 1427 | . . . . . 1005 422 Piercing . | . . . . . . . Highest Corruption 22 | . 1 1 1 1 1 22 Average Corruption 5 | . 1 1 1 1 1 10 Corruption Purged . | . . . . . . . Corruption Blocked . | . . . . . . . Effects 114 | . . 1 5 13 1 94 Message Errors 32 | . . . 2 4 . 26 Matter Fused 27 | . . . 1 4 1 21 Heat Flow Errors 16 | . . . . 2 . 14 Energy Discharges 17 | . . . 1 2 . 14 Parts Rejected 2 | . . . . . . 2 Data Loss (minor) 12 | . . . 1 1 . 10 Data Loss (major) 2 | . . . . . . 2 Misfires 3 | . . 1 . . . 2 Alerts 2 | . . . . . . 2 Weapon Failures 1 | . . . . . . 1 Overload Shots . | . . . . . . . Overflow Damage 309 | . . . . . 80 229 Projectiles 48 | . . . . . 23 25 Explosions 215 | . . . . . 22 193 Melee 46 | . . . . . 35 11 Knockbacks 3 | . . . . . . 3 Impact . | . . . . . . . Kinetic 3 | . . . . . . 3 Secondary . | . . . . . . . Self-Inflicted Damage 479 | . . . . . 148 331 Shots 9 | . . . . . 5 4 Rammed . | . . . . . . . Targets Rammed . | . . . . . . . Kicked . | . . . . . . . Crushed . | . . . . . . . Highest Temperature 548 | 48 . . . 272 433 548 Average Temperature 155 | 29 . . . 120 145 167 Received Heat Transfer 878 | 12 . . . . 354 512 Effects 34 | . . . . . 8 26 Shutdowns 12 | . . . . . 2 10 Energy Bleed 6 | . . . . . 2 4 Interference 8 | . . . . . 2 6 Matter Decay 3 | . . . . . . 3 Short Circuit 2 | . . . . . 1 1 Damage (minor) 2 | . . . . . . 2 Damage (major) 1 | . . . . . 1 . Siege Activations . | . . . . . . . Robots Corrupted 3 | . . . . . 2 1 Combat Hostiles 3 | . . . . . 2 1 Parts Fried 8 | . . . . . 6 2 Impact Corruptions . | . . . . . . . Robots Melted . | . . . . . . . Combat Hostiles . | . . . . . . . Parts Melted 4 | . . . . . . 4 Heat Transferred 757 | . . . . . . 757 Parts Sabotaged . | . . . . . . . Parts Stolen . | . . . . . . . Parts Stripped . | . . . . . . . Power Chain Reactions . | . . . . . . . Alert | -11 -10 -10 -10 -9 -8 -7 ------- Run | Yrd Mat Min Exi Min Mat Fac Peak Influence 240 | 20 13 4 . 84 155 240 Initial 58 | . 13 4 . . . 58 Average 68 | 3 13 4 . 42 50 105 Maximum Alert Level 1 | . . . . . . 1 Low Security (%) 93 | 100 100 100 . 100 100 83 Level 1 6 | . . . . . . 16 Level 2 . | . . . . . . . Level 3 . | . . . . . . . Level 4 . | . . . . . . . Level 5 . | . . . . . . . High Security . | . . . . . . . Max Security . | . . . . . . . Squads Dispatched 14 | . . . . 1 2 11 Investigation 2 | . . . . 1 1 . Extermination 6 | . . . . . . 6 Reinforcement 2 | . . . . . 1 1 Assault . | . . . . . . . Garrison 4 | . . . . . . 4 Intercept . | . . . . . . . Searches Triggered . | . . . . . . . Construction Impeded . | . . . . . . . Haulers Reinforced 1 | . . . . . . 1 Active Scanning Responses . | . . . . . . . Cargo Convoy Interrupts . | . . . . . . . Stealth | -11 -10 -10 -10 -9 -8 -7 --------- Run | Yrd Mat Min Exi Min Mat Fac Distress Signals 5 | . . . . . 3 2 Communications Jammed . | . . . . . . . Distress Signals . | . . . . . . . Times Spotted 76 | 1 . 3 . 6 26 40 Peak Tracking Total 8 | 1 . 3 . 4 8 5 Tactical Retreats 6 | . . . . 1 1 4 Traps | -11 -10 -10 -10 -9 -8 -7 ------- Run | Yrd Mat Min Exi Min Mat Fac Traps Triggered 3 | . . . . . 1 2 Indirectly . | . . . . . . . Trap Hack Attempts . | . . . . . . . Triggered . | . . . . . . . Disarmed . | . . . . . . . Reprogrammed . | . . . . . . . Reused . | . . . . . . . Traps Extracted . | . . . . . . . Installed . | . . . . . . . Triggered . | . . . . . . . Machines | -11 -10 -10 -10 -9 -8 -7 ---------- Run | Yrd Mat Min Exi Min Mat Fac Machines Disabled 9 | . . . . . . 9 Max in Single Turn 5 | . . . . . . 5 Machines Repaired . | . . . . . . . Machines Dismantled . | . . . . . . . Machines Sabotaged . | . . . . . . . Overloaded Fab Kills . | . . . . . . . Hacking | -11 -10 -10 -10 -9 -8 -7 --------- Run | Yrd Mat Min Exi Min Mat Fac Machines Accessed 20 | . 1 . 4 1 3 11 Terminals 8 | . 1 . . . 2 5 Fabricators 3 | . . . . . . 3 Repair Stations 2 | . . . . . 1 1 Recycling Units 1 | . . . . . . 1 Scanalyzers . | . . . . . . . Garrison Access 1 | . . . . . . 1 Total Hacks 83 | . 3 . 49 1 8 22 Successful 67 | . 2 . 49 1 6 9 Failed 16 | . 1 . . . 2 13 Catastrophic 3 | . . . . . . 3 Database Lockouts . | . . . . . . . Manual 4 | . . . 4 . . . Terminals 16 | . 3 . . . 5 8 Fabricators 5 | . . . . . . 5 Repair Stations 5 | . . . . . 3 2 Recycling Units 5 | . . . . . . 5 Scanalyzers . | . . . . . . . Garrison Access 2 | . . . . . . 2 Terminal Hacks 59 | . 2 . 49 1 4 3 Record 55 | . 2 . 49 . 3 1 Open Door 1 | . . . . 1 . . Open DSF 1 | . . . . . . 1 Terminal Index 1 | . . . . . . 1 Locate Traps 1 | . . . . . 1 . Fabricator Hacks 2 | . . . . . . 2 Network Status 1 | . . . . . . 1 Build 1 | . . . . . . 1 Repair Station Hacks 2 | . . . . . 2 . Scan Component 1 | . . . . . 1 . Repair 1 | . . . . . 1 . Recycling Unit Hacks 3 | . . . . . . 3 Process 1 | . . . . . . 1 Report Inventory 1 | . . . . . . 1 Retrieve Matter 1 | . . . . . . 1 Scanalyzer . | . . . . . . . Garrison Access Hacks 1 | . . . . . . 1 Unlock Access 1 | . . . . . . 1 Unauthorized Hacks . | . . . . . . . Terminals . | . . . . . . . Fabricators . | . . . . . . . Repair Stations . | . . . . . . . Recycling Units . | . . . . . . . Scanalyzers . | . . . . . . . Garrison Access . | . . . . . . . Data Cores Recovered 1 | . . . . . 1 . Used . | . . . . . . . Hacking Detections 12 | . 1 . . . 3 8 Full Trace Events 2 | . 1 . . . 1 . Feedback Events 1 | . 1 . . . . . Corruption 1 | . 1 . . . . . Feedback Blocked . | . . . . . . . Robot Schematics Acquired . | . . . . . . . Robots Built . | . . . . . . . Authchips . | . . . . . . . Time . | . . . . . . . Total Robot Build Rating . | . . . . . . . Part Schematics Acquired . | . . . . . . . Parts Built . | . . . . . . . Authchips . | . . . . . . . Time 53 | . . . . . . 53 Total Part Build Rating . | . . . . . . . Parts Repaired 1 | . . . . . 1 . Time 38 | . . . . . 38 . Parts Recycled . | . . . . . . . Recycled Matter 174 | . . . . . . 174 Retrieved Matter 242 | . . . . . . 242 Retrieved Components . | . . . . . . . Parts Scanalyzed . | . . . . . . . Part Schematics Acquired . | . . . . . . . Parts Damaged . | . . . . . . . Bothacking | -11 -10 -10 -10 -9 -8 -7 ------------ Run | Yrd Mat Min Exi Min Mat Fac Used RIF Installer . | . . . . . . . Robots Hacked 1 | . . . . . . 1 Non-combat 1 | . . . . . . 1 Combat . | . . . . . . . Robot Hacks Applied 1 | . . . . . . 1 parse_system 1 | . . . . . . 1 Relay Couplers Released . | . . . . . . . Fabnet Peak Effective % . | . . . . . . . Robots Rewired . | . . . . . . . Allies Hacked . | . . . . . . . Hacks Repelled . | . . . . . . . Allies | -11 -10 -10 -10 -9 -8 -7 -------- Run | Yrd Mat Min Exi Min Mat Fac Total Allies . | . . . . . . . Largest Group . | . . . . . . . Highest-Rated Group . | . . . . . . . Highest-Rated Ally . | . . . . . . . Total Orders . | . . . . . . . Ally Attacks . | . . . . . . . Total Damage . | . . . . . . . Kills . | . . . . . . . Allies Corrupted . | . . . . . . . Allies Melted . | . . . . . . . Intel | -11 -10 -10 -10 -9 -8 -7 ------- Run | Yrd Mat Min Exi Min Mat Fac Robot Analysis Total . | . . . . . . . Derelict Logs Recovered 2 | . . 1 . 1 . . Drone Launches . | . . . . . . . Drone Recoveries . | . . . . . . . Exploration | -11 -10 -10 -10 -9 -8 -7 ------------- Run | Yrd Mat Min Exi Min Mat Fac Turns Passed 9004 | 113 169 113 992 1239 3231 3147 Spaces Moved 4180 | 88 136 93 809 610 941 1503 Core 14 | 14 . . . . . . Treads . | . . . . . . . Legs 2867 | 74 136 93 809 610 927 218 Wheels 1299 | . . . . . 14 1285 Hover . | . . . . . . . Flight . | . . . . . . . Fastest Speed 50 | 50 120 120 120 120 120 110 Average Speed 151 | 108 120 120 120 181 201 132 Slowest Speed 540 | 120 120 120 120 190 540 540 Overloaded Moves . | . . . . . . . Propulsion Burnouts . | . . . . . . . Robots Hopped . | . . . . . . . Cave-ins Triggered . | . . . . . . . Exploration Rate (%) 45 | 5 24 31 93 82 50 33 Regions Visited 6 Branch Regions 3 Pre-discovered Areas 1 | . . . 1 . . . Known Exits Taken . | . . . . . . . Unknown Exits Taken 6 | 1 1 1 1 1 1 . Scrap Searched 2 | . . 1 . 1 . . Spaces Dug 67 | . . . . . 67 . Terrain Destroyed 128 | . . . . . 95 33 Melee . | . . . . . . . Projectile . | . . . . . . . AOE 128 | . . . . . 95 33 Terrain Rammed . | . . . . . . . Walls Destroyed . | . . . . . . . Machines Disabled . | . . . . . . . Actions | -11 -10 -10 -10 -9 -8 -7 --------- Run | Yrd Mat Min Exi Min Mat Fac Total 6505 | 98 142 94 833 709 2183 2446 Wait 1784 | . . 1 . 68 1062 653 Move 4174 | 87 135 92 808 609 940 1503 Hop . | . . . . . . . Pick Up 93 | 1 3 1 5 5 30 48 Fast Attach 56 | 7 2 . 6 2 15 24 Attach 44 | . . . 2 . 19 23 Detach 17 | . 1 . 3 . 6 7 Swap 51 | . . . . 2 16 33 Drop 91 | 1 1 . 9 7 32 41 Fire 155 | 2 . . . 16 33 104 Melee 40 | . . . . . 30 10 Ram . | . . . . . . . Kick . | . . . . . . . Crush . | . . . . . . . Escape Stasis . | . . . . . . . Rewire . | . . . . . . . Trap . | . . . . . . . Miscellaneous . | . . . . . . . Route ------- -11/Scrapyard -10/Materials -10/Mines -10/Exiles (discovered 2 exits: *Min x2) -9/Mines -8/Materials -7/Factory (discovered 3 exits: [*Fac] / Sto / Gar) History --------- Turn | Location | Event 2 | -11/Scrapyard | Met Revision 17 85 | -11/Scrapyard | Discovered new exit (range 8) 114 | -11/Scrapyard | Entered Materials 188 | -10/Materials | Met 8R-AWN 196 | -10/Materials | Discovered new exit (range 10) 283 | -10/Materials | Entered Mines 285 | -10/Mines | Followed 8R-AWN into the Mines 317 | -10/Mines | Met a Derelict bent on vengeance 318 | -10/Mines | Build established: Mutant 331 | -10/Mines | Learned 2 Materials zone layouts 369 | -10/Mines | Discovered new exit (range 17) 396 | -10/Mines | Entered Exiles 419 | -10/Exiles | Discovered new exit (range 15) 434 | -10/Exiles | Welcomed by 8R-AWN 460 | -10/Exiles | Met EX-HEX 515 | -10/Exiles | Met EX-BIN 537 | -10/Exiles | Aligned with FarCom system 538 | -10/Exiles | Given EX-Vault access code 696 | -10/Exiles | Met EX-DEC 704 | -10/Exiles | Learned location of Zion (-7) 847 | -10/Exiles | Discovered new exit (range 14) 933 | -10/Exiles | Visited The Gauntlet 1252 | -10/Exiles | Opened EX-Vault 1259 | -10/Exiles | Found Prototype Processor 1273 | -10/Exiles | Identified 0b10 Alert Chip 1298 | -10/Exiles | Warned to stay clear of 0b10 Research branches 1388 | -10/Exiles | Left Exiles lab with 0b10 Alert Chip 1388 | -10/Exiles | Entered Mines 1464 | -9/Mines | Met a Derelict shopkeep closing up shop 2107 | -9/Mines | Discovered new exit (range 9) 2368 | -9/Mines | Received a Rocket Launcher from a helpful Derelict 2627 | -9/Mines | Entered Materials 2627 | -8/Materials | Evolved 4 slots: Power x1, Utility x3 3007 | -8/Materials | Build established: Skirmisher 4041 | -8/Materials | Build established: Scavenger-Gladiator 4154 | -8/Materials | Repaired Carbon-fiber Leg 4880 | -8/Materials | Build established: Scavenger-Skirmisher 5531 | -8/Materials | Discovered new exit (range 16) 5585 | -8/Materials | Lost 4 parts (1p1n1u1w) 5858 | -8/Materials | Entered Factory 5858 | -7/Factory | Evolved 2 slots: Propulsion x1, Utility x1 5859 | -7/Factory | Identified exit to Storage 6115 | -7/Factory | Build established: Skirmisher 6949 | -7/Factory | Build established: Infiltrator-Skirmisher 7270 | -7/Factory | Discovered new exit (range 16) 7351 | -7/Factory | Lost 3 parts (1u2w) 7617 | -7/Factory | Garrison activated, responded to threat 7683 | -7/Factory | Core integrity fell below 50% 7706 | -7/Factory | System corruption reached 10% 7716 | -7/Factory | Lost 5 parts (1p2n1u1w) 7718 | -7/Factory | Garrison activated, responded to threat 8163 | -7/Factory | Build established: Scavenger-Skirmisher 8459 | -7/Factory | Core integrity fell below 20% 8921 | -7/Factory | Identified exit to Garrison 9005 | -7/Factory | Destroyed by S-27 Virus with Autogun Last Messages --------------- Wheel destroyed. Lgt. Nuclear Core destroyed. U-05 Engineer lays Concrete. Your per-turn energy upkeep is currently significantly in the negative, which may be okay for now but be prepared to manage it more closely. Hpw. Shotgun destroyed. U-05 Engineer lays Concrete. M-28 Smith repairs G-47 Trooper. Dropped Assault Cannon. M-28 Smith fits Backup Propulsion III on G-47 Trooper. U-05 Engineer lays Concrete. K-01 Serf cleans the Matter Pump. G-47 Trooper Lgt. Nuclear Core severed. R-06 Scavenger collects Imp. Heat Sink. Adv. ECM Suite destroyed. Greatsword destroyed. Wheel destroyed. Map ----- +----------------------------------------------------+ | ??????????????? | | ??????????????? | | """ ""????????????? | | """ ""????????????? | | """ ""????????????? | | ###############+############ ???????????? | | ############ # # """ """???????????? | | ##????????## #"" # """ """ # ???????? | | ##????????## #"" + """ """ ##???????? | | ##????????##"" """#"T # ##???????? | | ##????????##"" """#"" # """ """ # ???????? | | ##???????? #"T """#"" # """ """ # ???????? | | ##???????? #"" ""# # """ """ # ???????? | | ##???????? #"" ""# = # k # ???????? | | ##???????? # + # """ """ # ???????? | | ##???????? ########## """ # """ """ # ???????? | | ##???????? Y######### """ # """ """ + ???????? | | ?????????????######## """ # # ???????? | | ?????????????##"""### # # ???????? | | ????????????###"T"########## ###### # ???????? | | ????????????###" "########## ###### # ???????? | | ????????????## ##??????????????? | | ????????????## ! s u ##??????????????? | | ????????????## u u ### ????????????? | | ????????????## % ### ????????????? | | ????????????##! @ "# ????????????? | | ????????????##! r lg ""# ????????????? | | ????????????## """"" %m >G# ????????????? | | ?????## ?? """""" %"" "" ""# ????????????? | | ?????## """""" ""F"" "# ????????????? | | ?????## """""" """ ### ????????????? | | ?????## k### ????????????? | | ?????## ##??????????????? | | ?????## ################ ??????????????? | | ?????## # ### r ?????????????? | | ?????## ??????????????## " "????????????? | | ?????## ???????????????## T ???????????? | | ?????## ???????????????## " ""???????????? | | ?????## ???????????????## ????????????? | | ?????## ????????????????## ????????????? | | ?????## ?????????????????##########+????????????? | | ??????????????????????????#### ????????????? | | ?????????????????????????????????????????????????? | | ?????????????????????????????????????????????????? | | ?????????????????????????????????????????????????? | | ?????????????????????????????????????????????????? | | ?????????????????????????????????????????????????? | | ?????????????????????????????????????????????????? | | ?????????????????????????????????????????????????? | | ?????????????????????????????????????????????????? | +----------------------------------------------------+ Best States ------------- Heat Dissipation 61 Energy Generation 42 Energy Capacity 700 Matter Stores 451 Matter Capacity 500 Sight Range 20 Robot Scan Range 15 Terrain Scan Density 10 ECM Strength 2 Additional Mass Support 6 Armor Coverage 600 Resistance: KI 20 Melee Speed Boost 20 Evasion (%) 55 Targeting Accuracy 8 Target Analysis 5 Matter Filtering 30 Defensive Hacking 10 Item Schematics ----------------- None Robot Schematics ------------------ None Fabricated ------------ Nothing Alien Tech Used ----------------- None Achievements -------------- Librarian One Hack Too Far Power Corrupts System Compromised Tourist Challenges ------------ None Game ------ Seed FortressSensorTube Manual? 0 Play Time 02:33:53 Cumulative 7.5 hours Start 2024.07.16 @ 10:28:35 End 2024.07.16 @ 13:24:06 Sessions 1 Manual Loads 0 Difficulty Rogue Special Mode None Game No. 3 Rogue 3 Adventurer 0 Explorer 0 Win Type - Total 0 Types 0/0/0/0/0/0/0/0/0 Lore% 10 Gallery% 15 Achievement% 11 Wizard Run 0 Options --------- Layout 1 ASCII 0 Keyboard 0 Movement Numpad Keybinds 0 Fullscreen 1 Font 24/Smallcaps Map View 50x35 Zoom Use 0% Tactical HUD 0 Map Filters NONE Filters NONE Steam 1 RUN: 0cf2b263-4829-4480-aef2-93df72a0d0b0